bitfinex/quotes_BTCUSD_20250601
["timestamp","ask_amount","ask_price","bid_price","bid_amount"]
[1748747095751,0.21125342,104140.0,104130.0,0.3793268]
[1748747095970,0.21125342,104140.0,104130.0,0.40626395]
[1748747096605,0.21125342,104140.0,104130.0,0.40626344]
[1748747096950,0.21125342,104140.0,104130.0,0.40726344]
[1748747097153,0.21125342,104140.0,104130.0,0.3813268]
[1748747097362,0.21125342,104140.0,104130.0,0.40826146]
[1748747097999,0.25163497,104140.0,104130.0,0.40826082]
[1748747098503,0.25163497,104140.0,104130.0,0.3992826]
[1748747098721,0.25163497,104140.0,104130.0,0.40826006]
[1748747098931,0.25163497,104140.0,104130.0,0.33190509]
[1748747099138,0.21125342,104140.0,104130.0,0.52459842]
[1748747099345,0.21125342,104140.0,104130.0,0.53357583]
[1748747099553,0.21125342,104140.0,104130.0,0.53357582]
[1748747100199,0.20165143,104140.0,104130.0,0.33190461]
[1748747100413,0.20165143,104140.0,104130.0,0.53357491]
[1748747100822,0.20165143,104140.0,104130.0,0.34150731]
[1748747101034,0.20165143,104140.0,104130.0,0.33190393]
[1748747101035,0.24107278,104140.0,104130.0,0.33190393]
[1748747101214,0.24107278,104140.0,104130.0,0.03422393]
[1748747101414,0.24107278,104140.0,104130.0,0.31374978]
[1748747101614,0.24107278,104140.0,104130.0,0.33170522]
[1748747101847,0.25561363,104140.0,104130.0,0.33166532]
[1748747102030,0.25561363,104140.0,104130.0,0.33166533]
[1748747102234,0.25561363,104140.0,104130.0,0.32268794]
[1748747102470,0.25561363,104140.0,104130.0,0.33166556]
[1748747102883,0.21619228,104140.0,104130.0,0.33166556]
[1748747103063,0.21619228,104140.0,104130.0,0.32268794]
[1748747103266,0.21619228,104140.0,104130.0,0.33166542]
[1748747103609,0.21619228,104140.0,104130.0,0.33166505]
[1748747103842,0.21619228,104140.0,104130.0,0.33166621]
[1748747105031,0.21619228,104140.0,104130.0,0.33166734]
[1748747105491,0.21619228,104140.0,104130.0,0.33166791]
[1748747105915,0.21619228,104140.0,104130.0,0.33167025]
[1748747106668,0.21619228,104140.0,104130.0,0.3316716]
[1748747106870,0.21619228,104140.0,104130.0,0.31371327]
[1748747107001,0.21619228,104140.0,104130.0,0.33167439]
[1748747107212,0.21619228,104140.0,104130.0,0.33167446]
[1748747107831,0.01011658,104150.0,104140.0,0.21125342]
[1748747108051,0.40988907,104150.0,104140.0,0.66457378]
[1748747108285,0.62060716,104150.0,104140.0,0.64536852]
[1748747108506,0.61100637,104150.0,104140.0,0.6549688]
[1748747108716,0.38057054,104150.0,104140.0,1.09452347]
[1748747109568,0.38057054,104150.0,104140.0,1.09451694]
[1748747109773,0.38057054,104150.0,104140.0,1.0945072]
[1748747109981,0.38057054,104150.0,104140.0,1.43450675]
[1748747110193,0.38057054,104150.0,104140.0,1.42553012]
[1748747110426,0.38057054,104150.0,104140.0,1.43450214]
[1748747110660,0.38057054,104150.0,104140.0,1.10978753]
[1748747110895,0.38057054,104150.0,104140.0,1.10977228]
[1748747111101,0.38057054,104150.0,104140.0,1.08287014]
[1748747111304,0.38057054,104150.0,104140.0,1.10977148]
[1748747111897,0.38057054,104150.0,104140.0,1.10976364]
[1748747112310,0.38057054,104150.0,104140.0,1.10975978]
[1748747112515,0.38057054,104150.0,104140.0,1.10975383]
[1748747112717,0.38057054,104150.0,104140.0,1.10975084]
[1748747113579,0.38057054,104150.0,104140.0,1.1097486]
[1748747113979,0.38057054,104150.0,104140.0,1.10974395]
[1748747114735,0.38057054,104150.0,104140.0,1.10973889]
[1748747114941,0.38057054,104150.0,104140.0,1.10973398]
[1748747115130,0.38057054,104150.0,104140.0,1.40777398]
[1748747115708,0.38057054,104150.0,104140.0,1.40776999]
[1748747115826,0.38057054,104150.0,104140.0,1.40776887]
[1748747116045,0.38057054,104150.0,104140.0,1.40776885]
[1748747116393,0.38057054,104150.0,104140.0,1.40776877]
[1748747116605,0.38057054,104150.0,104140.0,1.40776816]
[1748747116805,0.38057054,104150.0,104140.0,1.40776612]
[1748747117062,0.38057054,104150.0,104140.0,1.4077651]
[1748747117472,0.38057054,104150.0,104140.0,1.40776434]
[1748747117680,0.38057054,104150.0,104140.0,1.40776281]
[1748747118183,0.38057054,104150.0,104140.0,1.40776278]
[1748747118391,0.38057054,104150.0,104140.0,1.40776234]
[1748747118620,0.38057054,104150.0,104140.0,1.40776027]
[1748747119126,0.38057054,104150.0,104140.0,1.38985999]
[1748747119328,0.38057054,104150.0,104140.0,1.4077597]
[1748747119689,0.39017133,104150.0,104140.0,1.38091014]
[1748747119895,0.39017133,104150.0,104140.0,1.38985936]
[1748747120096,0.39017133,104150.0,104140.0,1.38091014]
[1748747120396,0.39017133,104150.0,104140.0,1.38985936]
[1748747120596,0.39017133,104150.0,104140.0,1.40775787]
[1748747120813,0.39017133,104150.0,104140.0,1.39880864]
[1748747121017,0.39017133,104150.0,104140.0,1.38091014]
[1748747121342,0.39017133,104150.0,104140.0,1.40775696]
[1748747121904,0.39977222,104150.0,104140.0,1.10971696]
[1748747122109,0.40937329,104150.0,104140.0,1.40735696]
[1748747122316,0.39977222,104150.0,104140.0,1.40735681]
[1748747122788,0.38057054,104150.0,104140.0,1.40735681]
[1748747122987,0.39017143,104150.0,104140.0,1.40735681]
[1748747123418,0.39017143,104150.0,104140.0,1.40735615]
[1748747124177,0.39017143,104150.0,104140.0,1.38945857]
[1748747124390,0.39017143,104150.0,104140.0,1.40735547]
[1748747124612,0.39017143,104150.0,104140.0,1.40735561]
[1748747124971,0.39017143,104150.0,104140.0,1.40735568]
[1748747125404,0.3997725,104150.0,104140.0,1.40751599]
[1748747125601,0.6110061,104150.0,104140.0,0.68355565]
[1748747125785,0.40937385,104150.0,104140.0,1.08323911]
[1748747125991,0.59180405,104150.0,104140.0,0.02684881]
[1748747126201,0.59180405,104150.0,104140.0,0.42665126]
[1748747126471,0.59180405,104150.0,104140.0,0.11944881]
[1748747126602,0.59180405,104150.0,104140.0,0.41717515]
[1748747127244,0.59180405,104150.0,104140.0,0.41717542]
[1748747127444,0.59180405,104150.0,104140.0,0.39032]
[1748747127605,0.59180405,104150.0,104140.0,0.41718188]
[1748747127804,0.60198263,104150.0,104140.0,0.41718188]
[1748747128005,0.60198263,104150.0,104140.0,0.4171828]
[1748747128667,0.60198263,104150.0,104140.0,0.41718351]
[1748747128874,0.59180405,104150.0,104140.0,0.41718351]
[1748747129181,0.59180405,104150.0,104140.0,0.41718635]
[1748747129380,0.59180405,104150.0,104140.0,0.41718684]
[1748747129532,0.59180405,104150.0,104140.0,0.42678929]
[1748747129928,0.59180405,104150.0,104140.0,0.62844072]
[1748747130131,0.59180405,104150.0,104140.0,0.60157388]
[1748747130337,0.59180405,104150.0,104140.0,0.62844524]
[1748747130821,0.59180405,104150.0,104140.0,0.63805353]
[1748747131025,0.59180405,104150.0,104140.0,0.61117606]
[1748747131254,0.59180405,104150.0,104140.0,0.63805651]
[1748747131843,0.60190648,104150.0,104140.0,0.63805651]
[1748747132044,0.60190648,104150.0,104140.0,0.63805658]
[1748747132248,0.60190648,104150.0,104140.0,0.6380567]
[1748747132450,0.60190648,104150.0,104140.0,0.61117606]
[1748747132606,0.60190648,104150.0,104140.0,0.63806044]
[1748747133011,0.60190648,104150.0,104140.0,0.63806252]
[1748747134127,0.60140558,104150.0,104140.0,0.64766451]
[1748747134325,0.60140558,104150.0,104140.0,0.64766607]
[1748747134533,0.60140558,104150.0,104140.0,0.64766802]
[1748747134739,0.60140558,104150.0,104140.0,0.64767504]
[1748747135092,0.60140558,104150.0,104140.0,0.65727694]
[1748747135459,0.3901717,104150.0,104140.0,0.6572763]
[1748747135662,0.39977305,104150.0,104140.0,0.65727782]
[1748747135836,0.39977305,104150.0,104140.0,0.65728093]
[1748747136041,0.40937394,104150.0,104140.0,0.65728562]
[1748747136183,0.39977259,104150.0,104140.0,0.65728557]
[1748747136383,0.3997724,104150.0,104140.0,0.65728857]
[1748747136629,0.38057054,104150.0,104140.0,0.65728831]
[1748747136835,0.39017133,104150.0,104140.0,0.65728831]
[1748747137801,0.39977222,104150.0,104140.0,0.6573005]
[1748747138250,0.40937329,104150.0,104140.0,0.6573005]
[1748747138492,0.40937329,104150.0,104140.0,0.6393508]
[1748747138670,0.40937329,104150.0,104140.0,0.67290438]
[1748747139105,0.40937329,104150.0,104140.0,0.6573057]
[1748747139314,0.41897454,104150.0,104140.0,0.63037931]
[1748747139525,0.41897454,104150.0,104140.0,0.65730462]
[1748747139728,0.39017133,104150.0,104140.0,0.65730494]
[1748747139962,0.40937356,104150.0,104140.0,0.65730494]
[1748747140163,0.40937347,104150.0,104140.0,0.65730541]
[1748747140375,0.40937347,104150.0,104140.0,0.65730552]
[1748747140604,0.41897472,104150.0,104140.0,0.65730552]
[1748747140931,0.39977231,104150.0,104140.0,0.65730629]
[1748747141127,0.40937347,104150.0,104140.0,0.63037931]
[1748747141352,0.40937347,104150.0,104140.0,0.65730629]
[1748747141966,0.40937347,104150.0,104140.0,0.65730658]
[1748747142161,0.40937347,104150.0,104140.0,0.63935526]
[1748747142378,0.39017133,104150.0,104140.0,0.67230714]
[1748747142583,0.39017133,104150.0,104140.0,0.68830792]
[1748747142786,0.39017133,104150.0,104140.0,0.68830738]
[1748747142978,0.39977231,104150.0,104140.0,0.67230737]
[1748747143242,0.40937347,104150.0,104140.0,0.65730737]
[1748747143606,0.40937347,104150.0,104140.0,0.6573089]
[1748747143820,0.40937338,104150.0,104140.0,0.65730887]
[1748747144027,0.40937338,104150.0,104140.0,0.63935586]
[1748747144229,0.39977231,104150.0,104140.0,0.65730897]
[1748747144692,0.39977231,104150.0,104140.0,0.65730925]
[1748747144843,0.40937338,104150.0,104140.0,0.65730925]
[1748747145289,0.40937338,104150.0,104140.0,0.65730987]
[1748747145691,0.40937338,104150.0,104140.0,0.65731058]
[1748747146510,0.40937338,104150.0,104140.0,0.65731287]
[1748747146706,0.40937338,104150.0,104140.0,0.98167773]
[1748747146928,0.40937338,104150.0,104140.0,0.97270088]
[1748747147071,0.40937338,104150.0,104140.0,0.98167925]
[1748747147272,0.40937338,104150.0,104140.0,0.98168105]
[1748747147475,0.40937338,104150.0,104140.0,0.96372313]
[1748747147663,0.40937338,104150.0,104140.0,0.98168162]
[1748747147882,0.40937338,104150.0,104140.0,0.98168194]
[1748747148280,0.40937338,104150.0,104140.0,0.98168195]
[1748747148545,0.40937338,104150.0,104140.0,0.98168474]
[1748747148797,0.39977231,104150.0,104140.0,0.98168581]
[1748747148990,0.39977231,104150.0,104140.0,0.66137421]
[1748747148991,0.39017133,104150.0,104140.0,0.66137421]
[1748747149219,0.38057054,104150.0,104140.0,1.08159344]
[1748747149421,0.38057054,104150.0,104140.0,1.42159344]
[1748747149599,0.38057054,104150.0,104140.0,1.42159186]
[1748747150007,0.38057054,104150.0,104140.0,1.42159123]
[1748747150659,0.38057054,104150.0,104140.0,1.40363148]
[1748747150866,0.38057054,104150.0,104140.0,1.42155709]
[1748747151065,0.38057054,104150.0,104140.0,1.42127709]
[1748747151268,0.38057054,104150.0,104140.0,1.09694519]
[1748747151851,0.38057054,104150.0,104140.0,1.11224519]
[1748747152070,0.38057054,104150.0,104140.0,1.09428623]
[1748747152276,0.38057054,104150.0,104140.0,1.11224561]
[1748747152469,0.38057054,104150.0,104140.0,1.11224573]
[1748747152676,0.38057054,104150.0,104140.0,1.10326625]
[1748747152879,0.38057054,104150.0,104140.0,1.11224674]
[1748747153058,0.38057054,104150.0,104140.0,1.11224631]
[1748747153666,0.38057054,104150.0,104140.0,1.11224753]
[1748747153833,0.38057054,104150.0,104140.0,1.11204753]
[1748747154035,0.38057054,104150.0,104140.0,1.11204783]
[1748747154799,0.38057054,104150.0,104140.0,1.11205039]
[1748747155448,0.38057054,104150.0,104140.0,1.11205197]
[1748747155703,0.38057054,104150.0,104140.0,1.11205419]
[1748747155947,0.38057054,104150.0,104140.0,1.0967534]
[1748747156384,0.38057054,104150.0,104140.0,1.07878923]
[1748747156594,0.38057054,104150.0,104140.0,1.0967538]
[1748747156816,0.39017133,104150.0,104140.0,1.0967538]
[1748747157030,0.38057054,104150.0,104140.0,1.09675384]
[1748747157468,0.38057054,104150.0,104140.0,1.09675402]
[1748747157916,0.39657054,104150.0,104140.0,1.09675402]
[1748747158102,0.39657054,104150.0,104140.0,1.09675409]
[1748747158309,0.39657054,104150.0,104140.0,1.06980675]
[1748747158442,0.39657054,104150.0,104140.0,1.09675477]
[1748747158671,0.38057054,104150.0,104140.0,1.09675454]
[1748747159774,0.38057054,104150.0,104140.0,1.09675458]
[1748747160396,0.38057054,104150.0,104140.0,1.09675417]
[1748747160697,0.38057054,104150.0,104140.0,1.09675445]
[1748747160939,0.38057054,104150.0,104140.0,0.79951445]
[1748747161152,0.39017143,104150.0,104140.0,1.0966742]
[1748747161351,0.38057054,104150.0,104140.0,1.0966742]
[1748747161601,0.38057054,104150.0,104140.0,1.09667444]
[1748747161813,0.38057054,104150.0,104140.0,1.06972675]
[1748747161991,0.38057054,104150.0,104140.0,1.09922302]
[1748747162223,0.38057054,104150.0,104140.0,1.09667461]
[1748747162596,0.37980238,104150.0,104140.0,1.09667461]
[1748747163520,0.37980238,104150.0,104140.0,1.09667522]
[1748747163763,0.37980238,104150.0,104140.0,1.09667552]
[1748747163962,0.37980238,104150.0,104140.0,1.07870998]
[1748747164184,0.37980238,104150.0,104140.0,1.09667647]
[1748747164503,0.37980238,104150.0,104140.0,1.09667654]
[1748747165370,0.37980238,104150.0,104140.0,1.06972675]
[1748747165530,0.37980238,104150.0,104140.0,1.0966815]
[1748747166197,0.37980238,104150.0,104140.0,1.0965615]
[1748747166599,0.38940317,104150.0,104140.0,1.09656521]
[1748747166803,0.37980238,104150.0,104140.0,0.79952524]
[1748747167035,0.37980238,104150.0,104140.0,1.07855303]
[1748747167247,0.37980238,104150.0,104140.0,1.0965256]
[1748747167431,0.37980238,104150.0,104140.0,1.09652561]
[1748747168251,0.37980238,104150.0,104140.0,1.08753971]
[1748747168470,0.37980238,104150.0,104140.0,1.09652727]
[1748747168803,0.37980238,104150.0,104140.0,1.09653052]
[1748747169023,0.37980238,104150.0,104140.0,1.09653241]
[1748747169460,0.37980238,104150.0,104140.0,1.06956675]
[1748747169664,0.37980238,104150.0,104140.0,1.09653305]
[1748747170187,0.37980238,104150.0,104140.0,1.0875445]
[1748747170554,0.38940308,104150.0,104140.0,1.09653432]
[1748747171536,0.38940308,104150.0,104140.0,1.0965346]
[1748747171944,0.39900397,104150.0,104140.0,1.10330046]
[1748747172149,0.39900397,104150.0,104140.0,1.10330157]
[1748747172372,0.39900387,104150.0,104140.0,1.0853218]
[1748747172553,0.39900387,104150.0,104140.0,1.10330156]
[1748747172759,0.40860485,104150.0,104140.0,1.42767537]
[1748747172899,0.38940308,104150.0,104140.0,1.42767537]
[1748747173334,0.38940308,104150.0,104140.0,1.42767697]
[1748747173582,0.38940308,104150.0,104140.0,0.71370316]
[1748747173793,0.59103552,104150.0,104140.0,0.03779105]
[1748747173931,0.59103552,104150.0,104140.0,0.42627105]
[1748747174129,0.59103552,104150.0,104140.0,0.40828922]
[1748747174340,0.59103552,104150.0,104140.0,0.42627349]
[1748747174566,0.59103552,104150.0,104140.0,0.40829009]
[1748747174770,0.59103552,104150.0,104140.0,0.40828712]
[1748747174968,0.59103552,104150.0,104140.0,0.42626475]
[1748747175227,0.59103552,104150.0,104140.0,0.12958475]
[1748747175432,0.66934051,104150.0,104140.0,0.42666475]
[1748747175865,0.66934051,104150.0,104140.0,0.42665467]
[1748747176271,0.77973566,104150.0,104140.0,0.03777467]
[1748747176481,1.04143067,104150.0,104140.0,0.03777467]
[1748747176687,1.04143067,104150.0,104140.0,0.31680376]
[1748747176871,1.04143067,104150.0,104140.0,0.31680411]
[1748747177021,1.13394189,104150.0,104140.0,0.30105314]
[1748747177655,1.04143067,104150.0,104140.0,0.30105314]
[1748747178425,1.04143067,104150.0,104140.0,0.00405314]
[1748747178627,1.04143067,104150.0,104140.0,0.30109314]
[1748747179500,1.04143067,104150.0,104140.0,0.29704]
[1748747180382,1.05743067,104150.0,104140.0,0.29704]
[1748747181013,1.07243067,104150.0,104140.0,0.29704]
[1748747185210,1.16494189,104150.0,104140.0,0.29704]
[1748747185745,1.07243067,104150.0,104140.0,0.29704]
[1748747190650,1.05643067,104150.0,104140.0,0.29704]
[1748747191232,1.04143067,104150.0,104140.0,0.29704]
[1748747193541,0.20165143,104140.0,104130.0,0.00014058]
[1748747193743,0.20165143,104140.0,104130.0,0.3238399]
[1748747193948,0.20165143,104140.0,104130.0,0.32384162]
[1748747194386,0.20165143,104140.0,104130.0,0.32384248]
[1748747194767,0.20165143,104140.0,104130.0,0.32484248]
[1748747194944,0.29416265,104140.0,104130.0,0.32484248]
[1748747195346,0.29416265,104140.0,104130.0,0.3248434]
[1748747195734,0.29416265,104140.0,104130.0,0.32484823]
[1748747195934,0.29416265,104140.0,104130.0,0.3069088]
[1748747196139,0.29416265,104140.0,104130.0,0.32584824]
[1748747196675,0.29416265,104140.0,104130.0,0.32584974]
[1748747196900,0.29416265,104140.0,104130.0,0.32585545]
[1748747197701,0.20165143,104140.0,104130.0,0.32585545]
[1748747198622,0.20165143,104140.0,104130.0,0.30791289]
[1748747198843,0.20165143,104140.0,104130.0,0.02905961]
[1748747199086,0.20165143,104140.0,104130.0,0.32602382]
[1748747199293,0.20165143,104140.0,104130.0,0.32602378]
[1748747199503,0.29416265,104140.0,104130.0,0.32602378]
[1748747199919,0.29416265,104140.0,104130.0,0.31704941]
[1748747200124,0.29416265,104140.0,104130.0,0.30807811]
[1748747200359,0.29416265,104140.0,104130.0,0.32603318]
[1748747200683,0.29416265,104140.0,104130.0,0.31705565]
[1748747200872,0.29416265,104140.0,104130.0,0.32603318]
[1748747201410,0.29416265,104140.0,104130.0,0.32604544]
[1748747201880,0.29416265,104140.0,104130.0,0.32605697]
[1748747202024,0.29416265,104140.0,104130.0,0.30808796]
[1748747202245,0.29416265,104140.0,104130.0,0.32606273]
[1748747202635,0.29416265,104140.0,104130.0,0.30808796]
[1748747202935,0.29416265,104140.0,104130.0,0.32606273]
[1748747203601,0.29416265,104140.0,104130.0,0.32606313]
[1748747203799,0.29416265,104140.0,104130.0,0.32606393]
[1748747204007,0.29416265,104140.0,104130.0,0.32608036]
[1748747204275,0.29416265,104140.0,104130.0,0.29910058]
[1748747204482,0.29416265,104140.0,104130.0,0.32608036]
[1748747204889,0.29416265,104140.0,104130.0,0.32608376]
[1748747205065,0.29416265,104140.0,104130.0,0.32608379]
[1748747205473,0.20165143,104140.0,104130.0,0.30809727]
[1748747205676,0.21125361,104140.0,104130.0,0.32609066]
[1748747205835,0.21125361,104140.0,104130.0,0.3170984]
[1748747206203,0.21125361,104140.0,104130.0,0.32609729]
[1748747206507,0.21125361,104140.0,104130.0,0.33114719]
[1748747206926,0.20925361,104140.0,104130.0,0.34744718]
[1748747207097,0.20925361,104140.0,104130.0,0.36284718]
[1748747207308,0.20925361,104140.0,104130.0,0.36284716]
[1748747207507,0.20925361,104140.0,104130.0,0.33585048]
[1748747207710,0.20925361,104140.0,104130.0,0.36284713]
[1748747209015,0.20925361,104140.0,104130.0,0.32944934]
[1748747209276,0.20925361,104140.0,104130.0,0.54011921]
[1748747209484,0.20925361,104140.0,104130.0,0.53281808]
[1748747209648,0.19965143,104140.0,104130.0,0.33114707]
[1748747210251,0.19965143,104140.0,104130.0,0.32214816]
[1748747210510,0.19965143,104140.0,104130.0,0.331147]
[1748747210635,0.19965143,104140.0,104130.0,0.30415048]
[1748747210839,0.19965143,104140.0,104130.0,0.33114719]
[1748747211282,0.19965143,104140.0,104130.0,0.52321479]
[1748747211859,0.19965143,104140.0,104130.0,0.33114726]
[1748747212263,0.19965143,104140.0,104130.0,0.33114718]
[1748747212486,0.19965143,104140.0,104130.0,0.32214829]
[1748747212688,0.19965143,104140.0,104130.0,0.33114723]
[1748747213213,0.19965143,104140.0,104130.0,0.33114745]
[1748747213634,0.19965143,104140.0,104130.0,0.34075083]
[1748747213808,0.19965143,104140.0,104130.0,0.34075088]
[1748747214227,0.19965143,104140.0,104130.0,0.34075098]
[1748747215054,0.19965143,104140.0,104130.0,0.53281857]
[1748747215262,0.19965143,104140.0,104130.0,0.54242185]
[1748747215797,0.19965143,104140.0,104130.0,0.54242147]
[1748747216208,0.19965143,104140.0,104130.0,0.54242157]
[1748747216621,0.19965143,104140.0,104130.0,0.54242131]
[1748747217286,0.19965143,104140.0,104130.0,0.54242149]
[1748747217491,0.19965143,104140.0,104130.0,0.54242154]
[1748747218746,0.19965143,104140.0,104130.0,0.52442369]
[1748747218959,0.19965143,104140.0,104130.0,0.5424216]
[1748747219167,0.19965143,104140.0,104130.0,0.54242161]
[1748747219538,0.19965143,104140.0,104130.0,0.54242163]
[1748747219931,0.19965143,104140.0,104130.0,0.52442372]
[1748747220127,0.19965143,104140.0,104130.0,0.54242167]
[1748747220463,0.19965143,104140.0,104130.0,0.34075079]
[1748747220828,0.19204916,104140.0,104130.0,0.34075089]
[1748747221036,0.19204916,104140.0,104130.0,0.52442357]
[1748747221237,0.19204916,104140.0,104130.0,0.54242177]
[1748747221826,0.19204916,104140.0,104130.0,0.54242186]
[1748747222390,0.19204916,104140.0,104130.0,0.54242187]
[1748747222592,0.19204916,104140.0,104130.0,0.53342283]
[1748747222936,0.19204916,104140.0,104130.0,0.54242182]
[1748747223117,0.19204916,104140.0,104130.0,0.5424218]
[1748747223284,0.19204916,104140.0,104130.0,0.54242181]
[1748747223743,0.19204916,104140.0,104130.0,0.552025]
[1748747223904,0.19204916,104140.0,104130.0,0.55202493]
[1748747224516,0.19204916,104140.0,104130.0,0.53402693]
[1748747224703,0.19204916,104140.0,104130.0,0.55202495]
[1748747224921,0.19204916,104140.0,104130.0,0.55202496]
[1748747225276,0.19204916,104140.0,104130.0,0.55202495]
[1748747225495,0.19204916,104140.0,104130.0,0.52442375]
[1748747225691,0.19204916,104140.0,104130.0,0.51542474]
[1748747225897,0.28456038,104140.0,104130.0,0.03418749]
[1748747226098,0.28456038,104140.0,104130.0,0.33022749]
[1748747226284,0.28456038,104140.0,104130.0,0.33022751]
[1748747226487,0.19204916,104140.0,104130.0,0.33983089]
[1748747226780,0.19204916,104140.0,104130.0,0.33983108]
[1748747227543,0.19204916,104140.0,104130.0,0.33022774]
[1748747227947,0.19204916,104140.0,104130.0,0.33983119]
[1748747228140,0.19204916,104140.0,104130.0,0.33983122]
[1748747228435,0.19204916,104140.0,104130.0,0.33983132]
[1748747228681,0.19204916,104140.0,104130.0,0.33983137]
[1748747228890,0.19204916,104140.0,104130.0,0.31283386]
[1748747229288,0.19204916,104140.0,104130.0,0.3308322]
[1748747229499,0.19204916,104140.0,104130.0,0.33022799]
[1748747229909,0.19204916,104140.0,104130.0,0.33022805]
[1748747230254,0.19204916,104140.0,104130.0,0.33022803]
[1748747230692,0.19204916,104140.0,104130.0,0.33022811]
[1748747231281,0.19204916,104140.0,104130.0,0.33022822]
[1748747231930,0.19204916,104140.0,104130.0,0.33022825]
[1748747232538,0.19204916,104140.0,104130.0,0.33022854]
[1748747233597,0.19204916,104140.0,104130.0,0.33022914]
[1748747233805,0.19204916,104140.0,104130.0,0.53189993]
[1748747234029,0.19204916,104140.0,104130.0,0.52229674]
[1748747234191,0.19204916,104140.0,104130.0,0.33983249]
[1748747234620,0.19204916,104140.0,104130.0,0.3398325]
[1748747234818,0.19204916,104140.0,104130.0,0.33083298]
[1748747235030,0.19204916,104140.0,104130.0,0.32183354]
[1748747235235,0.19204916,104140.0,104130.0,0.33983294]
[1748747235586,0.19204916,104140.0,104130.0,0.33083323]
[1748747235797,0.19204916,104140.0,104130.0,0.54150375]
[1748747236010,0.19204916,104140.0,104130.0,0.54150349]
[1748747236409,0.20165143,104140.0,104130.0,0.54150359]
[1748747236547,0.20165143,104140.0,104130.0,0.54150372]
[1748747236750,0.20165143,104140.0,104130.0,0.55110682]
[1748747237206,0.20165143,104140.0,104130.0,0.54150372]
[1748747237409,1.33528637,104150.0,104130.0,0.84787728]
[1748747237631,1.23430443,104150.0,104140.0,0.55483149]
[1748747237856,1.10553793,104150.0,104140.0,0.58182908]
[1748747238100,0.37980238,104150.0,104140.0,1.0070047]
[1748747238978,0.37980238,104150.0,104140.0,1.00698774]
[1748747239195,0.37980238,104150.0,104140.0,0.68260468]
[1748747239619,0.37980238,104150.0,104140.0,0.68258327]
[1748747239847,0.37980238,104150.0,104140.0,0.59138327]
[1748747240049,0.37980238,104150.0,104140.0,0.97942327]
[1748747240254,0.38940308,104150.0,104140.0,0.97942327]
[1748747240466,0.38940308,104150.0,104140.0,0.95247348]
[1748747240688,0.37980238,104150.0,104140.0,0.97042563]
[1748747240893,0.37980238,104150.0,104140.0,0.97042496]
[1748747241094,0.37980238,104150.0,104140.0,0.96144916]
[1748747241291,0.37980238,104150.0,104140.0,0.97940052]
[1748747241903,0.37980238,104150.0,104140.0,0.97939983]
[1748747242711,0.37980238,104150.0,104140.0,0.97939302]
[1748747242965,0.38940308,104150.0,104140.0,0.97939302]
[1748747243111,0.37980238,104150.0,104140.0,0.97939302]
[1748747243330,0.37980238,104150.0,104140.0,0.96144916]
[1748747243558,0.37980238,104150.0,104140.0,0.97938282]
[1748747243963,0.37980238,104150.0,104140.0,0.96144326]
[1748747244205,0.37980238,104150.0,104140.0,0.97938156]
[1748747244618,0.37980238,104150.0,104140.0,0.95247348]
[1748747244793,0.37980238,104150.0,104140.0,0.97937463]
[1748747244999,0.37980238,104150.0,104140.0,0.97040704]
[1748747245208,0.37980238,104150.0,104140.0,0.97937382]
[1748747245430,0.38940308,104150.0,104140.0,0.97937382]
[1748747245637,0.38940308,104150.0,104140.0,0.97921215]
[1748747245817,0.37980238,104150.0,104140.0,0.97921215]
[1748747246165,0.37980238,104150.0,104140.0,0.97920692]
[1748747246570,0.38940308,104150.0,104140.0,0.9792054]
[1748747247020,0.37980238,104150.0,104140.0,0.9792054]
[1748747247457,0.37980238,104150.0,104140.0,0.97920463]
[1748747247603,0.38940308,104150.0,104140.0,0.97920463]
[1748747247964,0.38940308,104150.0,104140.0,0.97919934]
[1748747248164,0.38940308,104150.0,104140.0,0.97919898]
[1748747248549,0.37980238,104150.0,104140.0,0.97919898]
[1748747249051,0.37980238,104150.0,104140.0,0.97919639]
[1748747249413,0.37980238,104150.0,104140.0,0.97919634]
[1748747249847,0.38940317,104150.0,104140.0,0.97919634]
[1748747250066,0.39900406,104150.0,104140.0,0.97919634]
[1748747250272,0.39900406,104150.0,104140.0,0.97919577]
[1748747250789,0.39900406,104150.0,104140.0,0.97919401]
[1748747251162,0.39900406,104150.0,104140.0,0.97919377]
[1748747251336,0.39900406,104150.0,104140.0,0.97023366]
[1748747251534,0.39900406,104150.0,104140.0,0.97919364]
[1748747251778,0.39900406,104150.0,104140.0,0.95231348]
[1748747252005,0.39900406,104150.0,104140.0,0.9791934]
[1748747252357,0.39900406,104150.0,104140.0,0.97919357]
[1748747252566,0.37980238,104150.0,104140.0,1.05712775]
[1748747252774,0.37980238,104150.0,104140.0,1.07504783]
[1748747253035,0.37980238,104150.0,104140.0,1.39942164]
[1748747253241,0.38940308,104150.0,104140.0,1.39046167]
[1748747253452,0.38940308,104150.0,104140.0,1.3994221]
[1748747253603,0.38940308,104150.0,104140.0,1.07504829]
[1748747254024,0.38940308,104150.0,104140.0,1.07504826]
[1748747254235,0.38940308,104150.0,104140.0,1.0750482]
[1748747254552,0.38940308,104150.0,104140.0,1.05780717]
[1748747254702,0.38940308,104150.0,104140.0,1.08468889]
[1748747254906,0.41820592,104150.0,104140.0,1.0749695]
[1748747255113,0.41820592,104150.0,104140.0,1.07496952]
[1748747255334,0.40860476,104150.0,104140.0,1.07496952]
[1748747255547,0.40860476,104150.0,104140.0,1.07497002]
[1748747255981,0.40860476,104150.0,104140.0,1.07497027]
[1748747256229,0.40860476,104150.0,104140.0,1.0749718]
[1748747256481,0.40860476,104150.0,104140.0,1.0749724]
[1748747257210,0.40860476,104150.0,104140.0,1.06601104]
[1748747257441,0.41820592,104150.0,104140.0,1.07497268]
[1748747257667,0.41820592,104150.0,104140.0,1.07497484]
[1748747257840,0.41820574,104150.0,104140.0,1.07497484]
[1748747258275,0.41820574,104150.0,104140.0,1.07497553]
[1748747258445,0.41820574,104150.0,104140.0,0.36280172]
[1748747258657,0.41820574,104150.0,104140.0,0.7509261]
[1748747258658,0.41820611,104150.0,104140.0,0.7509261]
[1748747258907,0.39900406,104150.0,104140.0,1.07530012]
[1748747259222,0.40860513,104150.0,104140.0,1.07530012]
[1748747260075,0.38940317,104150.0,104140.0,1.0753014]
[1748747260306,0.38940317,104150.0,104140.0,1.07530138]
[1748747260539,0.38940317,104150.0,104140.0,1.07530189]
[1748747260747,0.38940317,104150.0,104140.0,1.07530468]
[1748747260942,0.39900415,104150.0,104140.0,1.07530635]
[1748747261385,0.39900415,104150.0,104140.0,1.0753107]
[1748747262155,0.39900415,104150.0,104140.0,1.07531283]
[1748747262393,0.39900415,104150.0,104140.0,1.06634903]
[1748747262605,0.4086054,104150.0,104140.0,1.07532089]
[1748747263006,0.41820657,104150.0,104140.0,1.07532089]
[1748747263214,0.41820638,104150.0,104140.0,1.07532094]
[1748747263420,0.41820638,104150.0,104140.0,1.07533104]
[1748747263612,0.41820638,104150.0,104140.0,1.07533102]
[1748747264068,0.41820638,104150.0,104140.0,1.07533107]
[1748747264279,0.41820638,104150.0,104140.0,1.0573822]
[1748747264487,0.41820638,104150.0,104140.0,1.07533172]
[1748747265095,0.39900415,104150.0,104140.0,1.07533628]
[1748747265309,0.39900415,104150.0,104140.0,1.07536493]
[1748747265527,0.39900415,104150.0,104140.0,1.07536491]
[1748747265738,0.39900415,104150.0,104140.0,1.05739348]